bitfinex-derivatives/quotes_ETHF0:USTF0_20251021
["timestamp","ask_amount","ask_price","bid_price","bid_amount"]
[1761017714026,0.2167,3939.4,3939.3,0.7502]
[1761017714730,0.4284,3939.4,3939.3,0.7502]
[1761017718722,0.216,3939.2,3939.1,0.45684]
[1761017718928,0.7444,3939.2,3939.1,1.23404]
[1761017719825,0.4246,3939.2,3939.1,1.23404]
[1761017720027,0.88641,3939.5,3939.0,0.133]
[1761017720028,0.2086,3939.5,3939.4,1.23402]
[1761017720231,9.1806,3939.5,3939.4,1.23402]
[1761017721234,0.2086,3939.8,3939.7,0.7772]
[1761017721425,0.2086,3939.8,3939.7,1.23398]
[1761017722634,1.20117,3939.8,3939.7,0.7772]
[1761017722824,1.20117,3939.8,3939.7,1.23398]
[1761017723127,0.2086,3939.8,3939.7,1.23398]
[1761017723434,8.973,3939.9,3939.8,1.23397]
[1761017723620,0.5284,3940.2,3940.1,0.4499]
[1761017723818,0.2086,3940.2,3940.1,1.23394]
[1761017725627,0.6653,3940.4,3940.3,0.7772]
[1761017726134,1.2011,3940.4,3940.3,0.7772]
[1761017726926,0.7444,3940.4,3940.3,0.7772]
[1761017727125,0.4246,3940.4,3940.3,0.7772]
[1761017727430,1.01233176,3940.4,3940.3,0.7772]
[1761017727836,1.33223176,3940.4,3940.3,0.7772]
[1761017728430,1.01233176,3940.4,3940.3,0.7772]
[1761017728938,1.33223176,3940.4,3940.3,0.7772]
[1761017729931,1.33223176,3940.4,3940.3,1.23391]
[1761017732741,1.78893176,3940.4,3940.3,1.23391]
[1761017733138,0.79633176,3940.4,3940.3,1.23391]
[1761017733639,5.485,3940.7,3940.6,1.21548]
[1761017733936,6.28469486,3940.7,3940.6,2.34911918]
[1761017734140,0.58909486,3940.7,3940.6,2.34911918]
[1761017734332,0.2106,3940.9,3940.8,0.7588]
[1761017734640,0.79965619,3940.9,3940.8,0.7588]
[1761017734838,1.02395619,3940.9,3940.8,0.7588]
[1761017735032,0.79965619,3940.9,3940.8,0.7588]
[1761017736937,1.34385619,3940.9,3940.8,0.7588]
[1761017737443,10.31185619,3940.9,3940.8,0.7588]
[1761017737733,1.34385619,3940.9,3940.8,0.7588]
[1761017737939,9.55605619,3940.9,3940.8,0.7588]
[1761017738139,8.967,3940.9,3940.8,0.7588]
[1761017739144,0.21352537,3941.2,3941.1,1.21542]
[1761017739334,0.21352537,3941.2,3941.1,2.34905918]
[1761017739635,7.67502027,3941.2,3941.1,2.34905918]
[1761017740230,0.21352537,3941.2,3941.1,2.34905918]
[1761017742243,0.00292537,3941.2,3941.1,2.34905918]
[1761017742941,0.00292537,3941.2,3941.1,1.21542]
[1761017743246,0.21352537,3941.2,3941.1,1.21542]
[1761017744642,0.21352537,3941.2,3941.1,0.7588]
[1761017744849,0.75772537,3941.2,3941.1,0.7588]
[1761017746150,0.43782537,3941.2,3941.1,0.7588]
[1761017747359,0.75772537,3941.2,3941.1,0.7588]
[1761017747658,0.43782537,3941.2,3941.1,0.7588]
[1761017748659,0.75772537,3941.2,3941.1,0.7588]
[1761017749161,0.75772537,3941.2,3940.9,0.45664]
[1761017749458,0.7548,3941.1,3941.0,0.3146]
[1761017749660,0.5442,3940.8,3940.7,0.5306]
[1761017749951,0.2106,3940.6,3940.5,0.3146]
[1761017750147,0.7548,3940.6,3940.5,0.5306]
[1761017750348,0.7548,3940.6,3940.5,0.7588]
[1761017750553,0.4349,3940.6,3940.5,0.8848]
[1761017751956,8.96,3940.7,3940.6,0.45668]
[1761017752159,1.21434537,3941.2,3941.1,0.5306]
[1761017752460,0.2106,3940.7,3940.6,0.7588]
[1761017752657,0.7548,3940.7,3940.6,1.21548]
[1761017754364,0.4349,3940.7,3940.6,1.21548]
[1761017755165,0.7548,3940.7,3940.6,1.21548]
[1761017755463,8.965,3940.8,3940.6,0.90088]
[1761017755758,9.1756,3940.8,3940.7,0.3146]
[1761017755964,9.1756,3940.8,3940.7,0.7588]
[1761017756257,9.3999,3940.8,3940.7,0.7588]
[1761017756462,9.7198,3940.8,3940.7,0.7588]
[1761017756761,9.3999,3940.8,3940.7,0.7588]
[1761017757155,0.2106,3940.8,3940.7,0.7588]
[1761017757355,9.1736,3940.8,3940.7,0.7588]
[1761017757553,0.45954537,3941.2,3940.9,0.45664]
[1761017757759,1.35447485,3941.1,3941.0,1.35073]
[1761017758266,0.81317485,3941.1,3941.0,1.35073]
[1761017758458,0.58727485,3941.1,3941.0,1.35073]
[1761017758655,0.22882537,3941.2,3941.1,1.22412]
[1761017758856,1.35747043,3941.2,3941.1,1.22412]
[1761017759161,1.02717043,3941.2,3941.1,1.22412]
[1761017759363,1.35747043,3941.2,3941.1,1.22412]
[1761017759564,1.02717043,3941.2,3941.1,1.22412]
[1761017759765,1.35747043,3941.2,3941.1,1.22412]
[1761017760964,1.02717043,3941.2,3941.1,1.22412]
[1761017761762,0.59027043,3941.2,3941.1,1.22412]
[1761017762456,0.81617043,3941.2,3941.1,1.22412]
[1761017762964,0.59027043,3941.2,3941.1,1.22412]
[1761017763962,0.81617043,3941.2,3941.1,1.22412]
[1761017765267,0.59027043,3941.2,3941.1,1.22412]
[1761017767670,0.00292537,3941.2,3941.1,1.22412]
[1761017768570,0.2259,3942.3,3942.2,0.7675]
[1761017768861,0.5881535,3942.3,3942.2,2.12714319]
[1761017769065,1.13021009,3942.9,3942.5,0.4618]
[1761017769370,0.3303,3942.6,3942.5,0.33793726]
[1761017769574,1.35467379,3942.6,3942.5,0.55353726]
[1761017772075,0.81337379,3942.6,3942.5,0.89683726]
[1761017772273,0.2259,3942.6,3942.5,0.89683726]
[1761017772768,1.35120822,3942.6,3942.5,0.77023726]
[1761017774275,0.7672,3942.6,3942.5,0.89683726]
[1761017776971,0.7672,3942.6,3942.5,0.77023726]
[1761017777569,1.22365,3942.6,3942.5,1.22669726]
[1761017778784,1.22365,3942.6,3942.5,0.77023726]
[1761017779182,1.22365,3942.6,3942.5,1.22669726]
[1761017780175,1.22365,3942.6,3942.5,0.55353726]
[1761017780384,1.22365,3942.6,3942.5,0.00273726]
[1761017780584,1.80693434,3942.6,3942.5,0.00273726]
[1761017783686,3.16657753,3942.6,3942.5,0.00273726]
[1761017783986,1.80693434,3942.6,3942.5,0.00273726]
[1761017784178,10.76593434,3942.6,3942.5,0.54683726]
[1761017784573,6.80693434,3942.6,3942.5,0.00273726]
[1761017787089,15.76693434,3942.6,3942.5,0.00273726]
[1761017787683,6.80693434,3942.6,3942.5,0.00273726]
[1761017787884,15.76593434,3942.6,3942.5,0.00273726]
[1761017789990,0.45656,3941.6,3941.5,0.6845]
[1761017790188,0.7624,3941.6,3941.5,0.5642]
[1761017790590,0.7624,3941.6,3941.5,0.9065]
[1761017791195,0.7624,3941.6,3941.5,0.78248562]
[1761017791896,0.7624,3941.6,3941.5,0.56048562]
[1761017792096,1.34676051,3941.6,3941.5,0.56048562]
[1761017793096,1.34676051,3941.6,3941.5,0.00258562]
[1761017795297,1.34676051,3941.6,3941.5,0.34488562]
[1761017795794,1.34676051,3941.6,3941.5,0.91488562]
[1761017795996,1.34676051,3941.6,3941.5,1.37146562]
[1761017796892,0.58436051,3941.6,3941.5,1.37146562]
[1761017797098,1.34690376,3941.8,3941.7,1.23645]
[1761017797596,1.80344376,3941.8,3941.7,1.23645]
[1761017797900,1.80344376,3941.8,3941.7,0.5579]
[1761017798400,1.21896,3941.6,3941.5,0.00258562]
[1761017798702,1.80346376,3941.6,3941.5,0.00258562]
[1761017799305,10.76046376,3941.6,3941.5,0.00258562]
[1761017799694,15.76046376,3941.6,3940.6,0.3423]
[1761017799899,0.2135,3940.3,3940.2,0.89433]
[1761017800101,0.7624,3940.3,3940.2,0.89433]
[1761017800298,0.7624,3940.3,3940.2,1.10120807]
[1761017800498,0.7624,3940.3,3940.2,1.44350807]
[1761017800899,0.7624,3940.3,3940.2,0.78317467]
[1761017801595,0.7624,3940.3,3940.2,0.98197459]
[1761017801790,0.4291,3940.3,3940.2,0.98197459]
[1761017802805,0.7624,3940.3,3940.2,0.78317467]
[1761017803701,0.4291,3940.3,3940.2,0.78317467]
[1761017803902,0.7624,3940.3,3940.2,0.78317467]
[1761017804611,0.7624,3940.3,3940.2,0.56117467]
[1761017804804,0.7624,3940.3,3940.2,0.00327467]
[1761017805608,1.34630887,3940.3,3940.2,0.00327467]
[1761017806401,2.47990646,3940.3,3940.2,0.00327467]
[1761017806803,1.34630887,3940.3,3940.2,0.56117467]
[1761017806999,9.7214,3940.3,3940.2,0.78317467]
[1761017809709,0.7624,3940.3,3940.2,0.78317467]
[1761017811513,10.18211,3940.3,3940.2,0.78317467]
[1761017812215,0.45666,3940.8,3940.6,0.45668]
[1761017812403,1.25157,3941.5,3940.6,0.45668]
[1761017812404,0.45659,3941.5,3941.3,0.4376]
[1761017812604,0.45659,3941.5,3941.4,1.91349759]
[1761017812899,0.88569,3941.5,3941.4,1.91349759]
[1761017813108,1.80228554,3941.5,3941.4,0.3423]
[1761017813408,1.21901,3941.2,3941.1,0.7799]
[1761017813607,0.88571,3941.2,3941.1,0.7799]
[1761017814217,1.21901,3941.2,3941.1,0.7799]
[1761017815007,0.2135,3940.9,3940.8,0.4376]
[1761017815214,1.21898,3941.5,3941.4,0.4376]
[1761017815410,1.80263152,3941.5,3941.4,0.7799]
[1761017816607,1.46933152,3941.5,3941.4,0.7799]
[1761017817904,1.78373152,3941.5,3941.4,0.5579]
[1761017819221,1.21771,3941.2,3941.1,0.2316]
[1761017819723,1.21771,3941.2,3941.1,0.5642]
[1761017820022,0.67921,3941.2,3941.1,0.7844]
[1761017820614,1.21771,3941.2,3941.1,0.7844]
[1761017821415,1.21777,3940.7,3940.6,0.2316]
[1761017821615,0.5385,3940.4,3940.3,0.4518]
[1761017821919,1.2178,3940.4,3940.3,0.4518]
[1761017822125,1.2178,3940.4,3940.3,0.7844]
[1761017822839,0.7611,3940.3,3940.2,0.33587467]
[1761017823039,0.7611,3940.3,3940.2,0.56747467]
[1761017823539,1.34572181,3940.3,3940.2,0.00327467]
[1761017825632,1.34576912,3940.3,3940.2,0.00327467]
[1761017825834,0.7611,3939.4,3939.3,1.02102]
[1761017826033,1.13359759,3940.2,3939.6,0.4568]
[1761017826232,0.67937,3939.9,3939.8,0.7844]
[1761017826438,1.26400469,3939.9,3939.8,0.7844]
[1761017826840,1.80546902,3939.9,3939.8,0.78678455]
[1761017827339,0.81028186,3939.9,3939.8,0.78678455]
[1761017827643,1.34878186,3939.9,3939.8,0.78678455]
[1761017828044,1.34878186,3939.9,3939.8,0.56658455]
[1761017828243,1.34878186,3939.9,3939.8,0.78678455]
[1761017828439,1.03438186,3939.9,3939.8,0.78678455]
[1761017829439,0.22556433,3939.9,3939.8,0.78678455]
[1761017829737,0.67928,3940.6,3940.5,0.9219]
[1761017829939,0.4467,3940.2,3940.1,0.5528]
[1761017830130,1.34586594,3940.2,3940.1,0.5642]
[1761017830329,0.7611,3940.2,3940.1,0.5642]
[1761017830729,0.76348566,3940.2,3940.1,0.7844]
[1761017832940,0.76348566,3940.2,3940.1,0.5642]
[1761017833143,0.7611,3940.0,3939.9,0.5642]
[1761017833438,0.4467,3940.0,3939.9,0.7844]
[1761017833941,0.22498566,3940.2,3940.1,0.7844]
[1761017834848,0.44908566,3940.2,3940.1,0.7844]
[1761017835045,0.76348566,3940.2,3940.1,0.5642]
[1761017835346,1.03236,3940.0,3939.8,1.02335455]
[1761017835552,0.90346,3940.0,3939.9,0.5642]
[1761017835947,1.21786,3940.0,3939.9,0.5642]
[1761017837751,0.7612,3939.9,3939.8,0.00238455]
[1761017837951,1.34606338,3939.9,3939.8,0.00238455]
[1761017838449,1.34606338,3939.9,3939.8,0.54318455]
[1761017838837,1.80282338,3939.9,3939.8,0.54318455]
[1761017839451,1.46772338,3939.9,3939.8,1.20915455]
[1761017841843,1.46772338,3939.9,3939.8,0.54318455]
[1761017841844,1.80282338,3939.9,3939.8,0.54318455]
[1761017842452,1.80282338,3939.9,3939.8,0.00238455]
[1761017844452,2.93642097,3939.9,3939.8,0.00238455]
[1761017846249,2.93642097,3939.9,3939.8,0.32008455]
[1761017846645,11.91642097,3939.9,3939.8,0.32008455]
[1761017847857,11.91642097,3939.9,3939.8,0.00238455]
[1761017849757,11.91442097,3939.9,3939.8,0.00238455]
[1761017850457,11.91442097,3939.9,3939.8,0.54568455]
[1761017850959,11.91342097,3939.9,3939.8,0.54568455]
[1761017852454,11.91242097,3939.9,3939.8,0.00238455]
[1761017852756,11.91142097,3939.9,3939.8,0.00238455]
[1761017855757,10.77782338,3939.9,3939.8,0.76998455]
[1761017855955,1.80282338,3939.9,3939.8,0.76998455]
[1761017856151,10.44072338,3939.9,3939.8,0.76998455]
[1761017856655,10.78742338,3939.9,3939.8,0.76998455]
[1761017858754,10.78859512,3939.9,3939.8,0.76998455]
[1761017859258,10.78859512,3939.9,3939.8,0.00238455]
[1761017860554,10.78859512,3939.9,3939.8,0.54568455]
[1761017860859,10.22569512,3939.9,3939.8,1.22675455]
[1761017861166,1.25269512,3939.9,3939.8,1.22675455]
[1761017861464,1.83049512,3939.9,3939.8,0.76998455]
[1761017862356,1.48379512,3939.9,3939.8,0.76998455]
[1761017862559,1.48379512,3939.9,3939.8,1.22675455]
[1761017863456,0.58603512,3939.9,3939.8,1.22675455]
[1761017864161,0.67104,3940.1,3940.0,0.9026]
[1761017864360,1.25730616,3940.1,3940.0,0.9026]
[1761017864964,1.04300616,3940.1,3940.0,1.35935]
[1761017867360,1.25730616,3940.1,3940.0,0.9026]
[1761017867561,1.83510616,3940.1,3940.0,0.9026]
[1761017867763,1.83510616,3940.1,3940.0,0.7676]
[1761017869666,1.83510616,3940.1,3940.0,0.9026]
[1761017872661,1.83510616,3940.1,3940.0,0.5433]
[1761017873167,1.83510616,3940.1,3939.8,0.21588455]
[1761017873168,1.24886,3939.9,3939.8,0.21588455]
[1761017873360,1.83512616,3939.9,3939.8,0.21588455]
[1761017873664,1.83512616,3939.9,3939.8,1.22675455]
[1761017873864,1.83512616,3939.9,3939.8,0.76998455]
[1761017875962,1.83512616,3939.9,3939.8,0.00238455]
[1761017876163,12.1588882,3939.9,3939.8,0.00238455]
[1761017878955,1.24043,3939.3,3939.2,0.537]
[1761017879161,1.82669616,3939.3,3939.2,0.537]
[1761017879968,1.82669616,3939.3,3939.2,0.53994908]
[1761017880272,1.82669616,3939.3,3939.2,0.00294908]
[1761017880863,1.82669616,3939.3,3939.2,0.31714908]
[1761017881172,1.82669616,3939.3,3939.2,0.53994908]
[1761017882674,1.82669616,3939.3,3939.2,0.00294908]
[1761017884573,1.82669616,3939.3,3939.2,0.31714908]
[1761017884776,1.82669616,3939.3,3939.2,0.53994908]
[1761017885576,1.82669616,3939.3,3939.2,0.00294908]
[1761017887778,1.82669616,3939.3,3939.2,0.53994908]
[1761017888479,10.79269616,3939.3,3939.2,0.53994908]
[1761017888779,10.79269616,3939.3,3939.2,0.00294908]
[1761017890175,1.82669616,3939.3,3939.2,0.53994908]
[1761017890378,9.99926616,3939.3,3939.2,0.75234908]
[1761017890885,10.33486616,3939.3,3939.2,0.75234908]
[1761017891085,10.79169616,3939.3,3939.2,0.75234908]
[1761017892380,1.82669616,3939.3,3939.2,0.75234908]
[1761017895203,1.82669616,3939.3,3939.2,0.53994908]
[1761017895684,1.82669616,3939.3,3939.2,0.00294908]
[1761017901902,1.82669616,3939.3,3939.2,0.76674908]
[1761017902494,1.82669616,3939.3,3939.2,0.54564908]
[1761017903398,1.82669616,3939.3,3939.2,0.31684908]
[1761017903801,1.82669616,3939.3,3939.2,0.54564908]
[1761017904705,1.82669616,3939.3,3939.2,0.00294908]
[1761017906507,1.82669616,3939.3,3939.2,0.54564908]
[1761017907503,1.82669616,3939.3,3939.2,0.00294908]
[1761017908306,2.73100625,3939.3,3939.2,0.00294908]
[1761017910709,2.73100625,3939.3,3939.2,0.33294908]
[1761017910899,2.73100625,3939.3,3939.2,0.55944908]
[1761017911104,2.73100625,3939.3,3939.2,0.78124908]
[1761017911501,11.69200625,3939.3,3939.2,0.78124908]
[1761017911905,11.35640625,3939.3,3939.2,0.78124908]
[1761017912106,10.45209616,3939.3,3939.2,0.78124908]
[1761017913306,1.49109616,3939.3,3939.2,0.78124908]
[1761017913611,10.45109616,3939.3,3939.2,0.78124908]
[1761017913810,0.58626616,3939.3,3939.2,1.23808908]
[1761017914006,0.90431009,3939.5,3939.4,0.7783]
[1761017914215,0.58721834,3939.5,3939.4,2.59588204]
[1761017914414,0.90431009,3939.9,3939.6,0.4483]
[1761017914713,2.17239582,3939.9,3939.8,0.4483]
[1761017915012,0.81132573,3939.9,3939.8,0.7783]
[1761017916515,0.58712573,3939.9,3939.8,0.7783]
[1761017917311,1.34782573,3939.9,3939.8,0.7783]
[1761017917513,1.34782573,3939.9,3939.8,0.5565]
[1761017917807,1.21749,3939.6,3939.5,0.5565]
[1761017918007,0.7607,3939.4,3939.3,0.33]
[1761017918206,1.21752,3939.4,3939.3,0.5565]
[1761017918606,1.21752,3939.4,3939.3,0.7783]
[1761017918915,1.21751,3939.5,3939.4,0.7783]
[1761017919114,1.80383595,3939.5,3939.4,0.7783]
[1761017919907,1.80383595,3939.5,3939.4,0.5565]
[1761017920109,0.7607,3939.3,3939.2,0.78124908]
[1761017920410,0.2242,3939.3,3939.2,0.78124908]
[1761017921815,0.2242,3940.1,3939.6,0.33]
[1761017922015,0.00238566,3940.2,3940.1,0.7783]
[1761017922214,0.89880566,3940.2,3940.1,0.7783]
[1761017922519,1.80564226,3940.2,3940.1,0.7783]
[1761017923113,0.45675,3940.0,3939.8,0.68326]
[1761017923316,0.89645,3940.0,3939.9,0.7783]
[1761017923516,1.02539125,3940.0,3939.9,0.7783]
[1761017924117,0.80989125,3940.0,3939.9,0.7783]
[1761017924320,0.00238566,3940.2,3940.1,0.33]
[1761017924519,0.00238566,3940.2,3940.1,0.7783]
[1761017925014,0.00238566,3940.2,3940.1,5.7783]
[1761017925419,0.00238566,3940.2,3940.1,0.7783]
[1761017926827,0.00238566,3940.2,3940.1,5.7783]
[1761017929016,0.22658566,3940.2,3940.1,0.7783]
[1761017929321,0.00238566,3940.2,3940.1,0.7783]
[1761017931418,0.58445815,3940.9,3940.8,0.7783]
[1761017931613,0.2242,3941.2,3941.1,0.7783]
[1761017931816,0.321,3941.4,3941.1,0.7783]
[1761017931817,0.2242,3941.4,3941.3,0.4483]
[1761017932116,0.5452,3941.7,3941.6,0.4483]
[1761017932316,1.3447356,3941.7,3941.6,0.7783]
[1761017932519,1.3472792,3941.7,3941.6,0.7783]
[1761017934220,1.3472792,3941.7,3941.6,0.5565]
[1761017934419,1.3472792,3941.7,3941.6,0.33]
[1761017935726,0.8020792,3941.7,3941.4,0.33]
[1761017935925,0.7607,3941.5,3941.4,0.5565]
[1761017936121,1.3447356,3941.5,3941.4,0.5565]
[1761017936316,0.7607,3941.5,3941.4,0.5565]
[1761017937433,1.34424755,3941.5,3941.4,0.5565]
[1761017937628,0.7607,3941.5,3941.4,0.5565]
[1761017938136,1.22731,3941.2,3941.1,0.553]
[1761017939127,0.45661,3941.2,3941.1,0.7746]
[1761017940233,0.67901,3941.2,3941.1,0.7746]
[1761017940533,0.45661,3941.2,3941.1,1.23122]
[1761017940923,0.67897,3941.5,3941.4,0.7746]
[1761017941120,0.80609251,3941.5,3941.4,1.23118]
[1761017941333,0.2249436,3941.7,3941.6,1.23116]
[1761017941726,0.80867238,3941.7,3941.6,1.23116]
[1761017942230,0.58627238,3941.7,3941.6,1.23116]
[1761017942625,0.80867238,3941.7,3941.6,1.23116]
[1761017942835,0.0025436,3941.7,3941.6,1.23116]
[1761017943532,0.2249436,3941.7,3941.6,1.23116]
[1761017943733,0.4363436,3941.7,3941.6,0.7746]
[1761017943932,0.7732436,3941.7,3941.6,0.7746]
[1761017944739,0.2249436,3941.7,3941.6,0.7746]
[1761017945036,0.0025436,3941.7,3941.6,0.7746]
[1761017946130,0.2249436,3941.7,3941.6,0.7746]
[1761017946535,0.4363436,3941.7,3941.6,0.7746]
[1761017947131,0.2249436,3941.7,3941.6,0.7746]
[1761017948441,0.0025436,3941.7,3941.6,0.7746]
[1761017948940,0.0025436,3941.7,3941.6,1.23116]
[1761017954438,0.58700349,3941.7,3941.6,1.23116]
[1761017956732,0.0025436,3941.7,3941.6,1.23116]
[1761017957143,0.2287,3942.6,3942.5,1.35856]
[1761017957365,0.68511,3942.9,3942.8,0.7689]
[1761017957566,1.26951494,3942.9,3942.8,0.7689]
[1761017958161,1.26951494,3942.9,3942.8,0.77137176]
[1761017958162,1.27256859,3942.9,3942.8,0.77137176]
[1761017959159,0.81615859,3942.9,3942.8,0.77137176]
[1761017959861,1.36935859,3942.9,3942.8,0.77137176]
[1761017960062,1.36935859,3942.9,3942.8,0.00247176]
[1761017960563,1.36935859,3942.9,3942.8,0.54047176]
[1761017960765,1.36935859,3942.9,3942.8,0.00247176]
[1761017961163,1.36935859,3942.9,3942.8,0.54047176]
[1761017961764,1.36935859,3942.9,3942.8,0.77137176]
[1761017961970,1.04535859,3942.9,3942.8,0.77137176]
[1761017962173,1.36935859,3942.9,3942.8,0.77137176]
[1761017962669,1.36935859,3942.9,3942.8,0.00247176]
[1761017964068,6.36935859,3942.9,3942.8,0.00247176]
[1761017964370,7.27366868,3942.9,3942.8,0.00247176]
[1761017965164,15.32635859,3942.9,3942.8,0.00247176]
[1761017965872,10.32635859,3942.9,3942.8,0.00247176]
[1761017966074,10.32635859,3942.9,3942.8,0.32217176]
[1761017966274,11.46019112,3942.9,3942.8,0.32217176]
[1761017966477,11.46019112,3942.9,3942.8,0.54047176]
[1761017966667,10.32635859,3942.9,3942.8,0.77137176]
[1761017966867,1.04535859,3942.9,3942.8,0.77137176]
[1761017967061,1.36935859,3942.9,3942.8,0.77137176]
[1761017967273,1.36935859,3942.9,3942.8,0.00247176]
[1761017968376,1.36935859,3942.9,3942.8,0.54077176]
[1761017968676,1.36935859,3942.9,3942.8,0.75867176]
[1761017969568,1.36935859,3942.9,3942.8,0.54077176]
[1761017969761,1.36935859,3942.9,3942.8,0.00247176]
[1761017970760,1.82576859,3942.9,3942.8,0.00247176]
[1761017973778,2.73007868,3942.9,3942.8,0.00247176]
[1761017975176,0.7739,3942.2,3942.1,0.9948]
[1761017975674,0.7739,3942.2,3942.1,1.2127]
[1761017975976,0.7739,3942.2,3942.1,1.21479376]
[1761017976373,0.4426,3942.2,3942.1,1.21479376]
[1761017978372,0.2115,3942.2,3942.1,1.21479376]
[1761017980373,0.66797,3942.4,3942.3,1.21268]
[1761017980578,1.81531338,3942.4,3942.3,1.21268]
[1761017980778,1.48401338,3942.4,3942.3,1.21268]
[1761017981077,1.81531338,3942.4,3942.3,0.7562]
[1761017981277,1.81531338,3942.4,3942.3,1.21268]
[1761017982178,0.58494338,3942.4,3942.3,1.21268]
[1761017982377,0.66796,3942.6,3942.5,0.8935]
[1761017982679,1.25300588,3942.6,3942.5,0.8935]
[1761017983572,1.25300588,3942.6,3942.5,1.34996]
[1761017983772,1.25300588,3942.6,3942.5,0.8935]
[1761017983974,1.25300588,3942.6,3942.5,1.34996]
[1761017984375,1.81540588,3942.6,3942.5,1.34996]
[1761017985283,1.81540588,3942.6,3942.5,0.99476]
[1761017986381,1.35894588,3942.6,3942.5,1.34996]
[1761017987280,1.02764588,3942.6,3942.5,1.34996]
[1761017987785,1.81539588,3942.6,3942.5,1.34996]
[1761017988186,1.48409588,3942.6,3942.5,1.34996]
[1761017988394,2.38840597,3942.6,3942.5,1.34996]
[1761017988678,2.71970597,3942.6,3942.5,1.34996]
[1761017988878,1.81539588,3942.6,3942.5,1.34996]
[1761017989586,2.71970597,3942.6,3942.5,1.34996]
[1761017989788,2.71970597,3942.6,3942.5,0.8935]
[1761017990084,2.71970597,3942.6,3942.5,1.34996]
[1761017990286,2.26325597,3942.6,3942.5,1.34996]
[1761017990487,2.38840597,3942.6,3942.5,1.34996]
[1761017990686,2.71970597,3942.6,3942.5,1.34996]
[1761017993488,2.38840597,3942.6,3942.5,1.34996]
[1761017994189,2.71970597,3942.6,3942.5,1.34996]
[1761017995189,2.26325597,3942.6,3942.5,1.34996]
[1761017995490,1.93195597,3942.6,3942.5,1.34996]
[1761017995790,2.26325597,3942.6,3942.5,1.34996]
[1761017996490,2.71970597,3942.6,3942.5,1.34996]
[1761017996788,2.71970597,3942.6,3942.5,1.21266]
[1761017996988,2.26325597,3942.6,3942.5,1.34996]
[1761018001687,2.71969597,3942.6,3942.5,0.5383]
[1761018001889,2.71969597,3942.6,3942.5,0.99476]
[1761018002095,2.71969597,3942.6,3942.1,0.44109376]
[1761018002096,0.7551,3942.2,3942.1,0.44109376]
[1761018002295,1.34014588,3942.2,3942.1,0.44109376]
[1761018002698,1.34014588,3942.2,3942.1,0.33079376]
[1761018003196,1.34014588,3942.2,3942.1,0.76979376]
[1761018003391,1.02694588,3942.2,3942.1,0.76979376]
[1761018003594,0.58504588,3942.2,3942.1,0.76979376]
[1761018003792,0.9132282,3942.5,3942.4,1.22417]
[1761018003994,0.58600574,3942.6,3942.5,0.3287]
[1761018004198,0.9132282,3942.8,3942.7,0.7677]
[1761018004594,1.4992053,3942.8,3942.7,0.7677]
[1761018004897,0.7551,3942.4,3942.3,0.3287]
[1761018005097,1.3410771,3942.4,3942.3,0.5439]
[1761018005689,1.3410771,3942.4,3942.3,0.3287]
[1761018005893,1.3410771,3942.4,3942.3,0.5439]
[1761018009004,1.0278771,3942.4,3942.3,0.7677]
[1761018009999,1.3410771,3942.4,3942.3,0.7677]
[1761018010201,1.0278771,3942.4,3942.3,0.7677]
[1761018010903,1.3410771,3942.4,3942.3,0.5439]
[1761018011095,1.21158,3942.3,3942.2,0.5439]
[1761018011294,1.7975571,3942.3,3942.2,0.7677]
[1761018013795,0.524,3942.2,3942.1,0.00209376]
[1761018013992,0.3132,3941.3,3941.1,0.5439]
[1761018014302,0.5859771,3941.2,3941.1,0.439]
[1761018014604,9.86501049,3941.8,3941.0,0.58343]
[1761018014605,1.34030281,3941.5,3941.4,1.22428]
[1761018014804,1.0270857,3941.5,3941.4,1.22428]
[1761018014997,0.5851857,3941.5,3941.4,1.22674226]
[1761018015297,0.45655,3941.7,3941.5,0.3287]
[1761018015504,1.34006426,3941.6,3941.5,0.5439]
[1761018016004,1.34006426,3941.6,3941.5,0.9027]
[1761018016707,1.22027,3941.5,3941.4,0.00246226]
[1761018016904,1.80523426,3941.5,3941.4,0.54786226]
[1761018017501,1.80523426,3941.5,3941.4,0.32806226]
[1761018017803,1.34866426,3941.5,3941.4,0.54786226]
[1761018017999,1.34866426,3941.5,3941.4,0.76606226]
[1761018019508,1.34866426,3941.5,3941.4,0.54786226]
[1761018021396,1.34866426,3941.5,3941.4,0.00246226]
[1761018021710,1.34866426,3941.5,3941.4,0.32806226]
[1761018022811,1.91503426,3941.5,3941.4,0.32806226]
[1761018024300,1.80523426,3941.5,3941.4,0.54786226]
[1761018024503,1.80523426,3941.5,3941.4,0.76606226]
[1761018028609,1.91493426,3941.5,3941.4,0.00246226]
[1761018035119,3.27388242,3941.5,3941.4,0.00246226]
[1761018037020,1.22377,3940.7,3940.6,0.553]
[1761018037213,1.22377,3940.7,3940.6,0.7751]
[1761018037415,0.78314,3941.0,3940.7,0.45666]
[1761018037618,0.67244,3941.0,3940.9,0.7751]
[1761018037815,0.8000453,3941.0,3940.9,0.7751]
[1761018038017,0.5842453,3941.0,3940.9,0.77737181]
[1761018038318,0.99893,3941.1,3941.0,0.9067]
[1761018038520,0.58427749,3941.1,3941.0,0.9067]
[1761018038716,0.6724,3941.3,3941.2,0.7751]
[1761018038910,1.25665566,3941.3,3941.2,0.7751]
[1761018039519,0.6724,3941.3,3941.2,0.7751]
[1761018039715,1.2568003,3941.3,3941.2,0.7751]
[1761018040110,1.8081003,3941.3,3941.2,0.3335]
[1761018040418,1.22373,3941.0,3940.9,0.90051181]
[1761018040622,1.8081303,3941.0,3940.9,0.90051181]
[1761018040819,1.8081303,3941.0,3940.9,1.23401181]
[1761018042218,1.2568303,3941.0,3940.9,1.23401181]
[1761018043922,1.5833303,3941.0,3940.9,1.23401181]
[1761018044624,1.8081303,3941.0,3940.9,1.23401181]
[1761018046126,1.4816303,3941.0,3940.9,1.23401181]
[1761018046824,1.8081303,3941.0,3940.9,1.23401181]
[1761018049429,1.8081303,3941.0,3940.9,0.55527181]
[1761018049729,1.8081303,3941.0,3940.9,0.77737181]
[1761018050524,1.8081303,3941.0,3940.9,0.33577181]
[1761018050826,1.8081303,3941.0,3940.9,0.00227181]
[1761018050827,1.9369303,3941.0,3940.9,0.00227181]
[1761018051726,3.0701649,3941.0,3940.9,0.00227181]
[1761018053532,3.98317539,3941.0,3940.9,0.00227181]
[1761018054233,0.3265,3940.4,3940.3,0.45671]
[1761018054425,0.8002003,3940.4,3940.3,1.23181]
[1761018054826,1.3515003,3940.4,3940.3,1.23181]